bitfinex/quotes_ETHUSD_20241104
["timestamp","ask_amount","ask_price","bid_price","bid_amount"]
[1730756312427,0.1091956,2395.3,2395.0,4.17536]
[1730756312657,0.1091956,2395.3,2394.9,4.17539]
[1730756312658,0.0520037,2395.2,2394.9,4.17539]
[1730756312855,0.0520037,2395.2,2395.0,4.17532]
[1730756313057,0.1091956,2395.3,2395.0,0.01]
[1730756313370,0.0520037,2395.1,2395.0,0.01]
[1730756313555,4.2840456,2395.3,2395.0,0.01]
[1730756313743,0.0520037,2395.1,2395.0,0.01]
[1730756313946,0.1091956,2395.3,2395.2,0.01]
[1730756314457,0.1091956,2395.3,2394.9,0.8091]
[1730756314458,4.2840356,2395.3,2394.9,0.8091]
[1730756314641,4.2840456,2395.3,2395.0,0.01]
[1730756314849,4.17521,2395.1,2394.7,0.01]
[1730756315046,4.17502,2395.2,2395.0,0.01]
[1730756315466,4.17502,2395.2,2394.5,0.8091]
[1730756315467,4.17547,2395.0,2394.7,0.01]
[1730756315772,0.1091956,2395.3,2394.7,0.01]
[1730756315773,4.17556,2394.9,2394.7,0.01]
[1730756316175,4.17588,2394.8,2394.7,0.01]
[1730756316388,4.17556,2394.9,2394.7,0.01]
[1730756316880,8.35122,2394.9,2394.7,0.01]
[1730756317177,4.17533,2395.1,2394.7,0.01]
[1730756317387,4.17533,2395.1,2394.7,4.18588]
[1730756317555,4.17584,2394.8,2394.5,0.01]
[1730756317753,4.176,2394.7,2394.5,0.01]
[1730756317953,4.17549,2395.0,2394.7,0.01]
[1730756318157,4.17562,2394.9,2394.7,0.01]
[1730756318369,4.17581,2394.8,2394.7,0.01]
[1730756318681,4.17581,2394.8,2394.4,0.01]
[1730756318983,4.17581,2394.8,2394.5,0.01]
[1730756319153,4.17581,2394.8,2394.7,0.01]
[1730756319493,0.1091956,2395.3,2395.2,0.01]
[1730756319656,0.1091956,2395.3,2395.2,4.18501]
[1730756320014,0.1091956,2395.3,2395.2,0.01]
[1730756320482,4.17572,2394.8,2394.5,0.01]
[1730756320695,0.8782956,2395.3,2394.4,0.01]
[1730756320840,4.17609,2394.6,2394.4,0.01]
[1730756321041,0.30257656,2395.2,2393.9,4.18714]
[1730756321238,4.17652,2394.4,2393.9,8.36433]
[1730756321484,4.17639,2394.5,2394.1,0.01]
[1730756321788,4.17588,2394.7,2393.8,4.18742]
[1730756321955,4.17668,2394.3,2393.8,4.18742]
[1730756322156,4.17635,2394.5,2393.9,4.12725]
[1730756322471,4.17635,2394.5,2394.2,0.01]
[1730756322669,4.17714,2394.0,2393.8,0.01]
[1730756323043,0.0550573,2394.0,2393.8,0.01]
[1730756323244,0.0550573,2394.0,2393.3,0.7917]
[1730756323245,4.17772,2393.7,2393.3,0.7917]
[1730756323447,4.17795,2393.6,2393.3,0.7917]
[1730756323762,0.0550573,2394.0,2393.6,0.01]
[1730756323978,0.0550573,2394.0,2393.9,4.18728]
[1730756324405,7.3e-06,2394.0,2393.9,5.09890376]
[1730756324614,0.93480461,2395.2,2394.9,4.17553]
[1730756324790,0.93480461,2395.2,2395.1,4.18519]
[1730756324791,0.0882315,2395.2,2395.1,4.18519]
[1730756324997,1.5e-06,2395.2,2395.1,7.69386903]
[1730756325319,1.5e-06,2395.2,2395.1,8.52196903]
[1730756325663,1.5e-06,2395.2,2395.1,5.00329]
[1730756325904,1.5e-06,2395.2,2395.1,0.8281]
[1730756326119,1.5e-06,2395.2,2394.7,0.01]
[1730756326266,1.5e-06,2395.2,2394.5,0.01]
[1730756326466,4.17566,2394.9,2394.5,0.01]
[1730756326664,4.17566,2394.9,2394.1,0.8181]
[1730756326665,4.17641,2394.4,2394.1,0.8281]
[1730756326975,11.33650011,2395.0,2393.9,0.07266887]
[1730756326976,4.17676,2394.2,2393.9,0.07266887]
[1730756327163,4.17657,2394.4,2394.0,0.01]
[1730756327363,4.17704,2394.1,2393.8,0.01]
[1730756327862,4.17696,2394.1,2393.5,4.18783]
[1730756328063,4.1773,2393.9,2393.7,0.01]
[1730756328263,4.17693,2394.1,2393.4,0.8281]
[1730756328572,4.17693,2394.1,2392.6,0.01]
[1730756328573,4.17897,2393.0,2392.6,0.01]
[1730756328787,5.498067,2393.8,2392.8,0.01]
[1730756328788,4.17866,2393.2,2392.8,0.01]
[1730756328983,5.02524311,2393.2,2392.8,0.01]
[1730756329179,4.17875,2393.1,2392.8,0.01]
[1730756329375,4.17887,2393.0,2392.5,0.01]
[1730756329745,4.17872,2393.1,2392.8,0.01]
[1730756330581,4.17902,2392.9,2392.8,0.01]
[1730756330789,4.17902,2392.9,2392.3,0.01]
[1730756330790,4.1799,2392.4,2392.3,0.01]
[1730756331125,4.17896,2393.0,2392.5,4.1397]
[1730756331312,4.17896,2393.0,2392.4,4.17987]
[1730756331491,4.17896,2393.0,2392.4,4.1799]
[1730756331716,0.84657311,2393.3,2392.0,4.18055]
[1730756332022,4.17833,2393.3,2392.8,4.17903]
[1730756332578,0.04906965,2393.2,2393.0,4.17883]
[1730756332779,0.04906965,2393.2,2393.1,4.17868]
[1730756333021,4.17779,2393.7,2393.2,4.17846]
[1730756333221,8.35614,2393.5,2392.9,4.997]
[1730756333381,8.35614,2393.5,2393.0,0.08356839]
[1730756333382,4.17807,2393.5,2393.0,0.08356839]
[1730756333578,4.17807,2393.5,2393.0,4.17884]
[1730756333920,4.17816,2393.4,2393.0,0.08356839]
[1730756334093,4.17816,2393.4,2392.9,0.8181]
[1730756334295,4.17731,2393.9,2392.9,0.8181]
[1730756334296,4.17785,2393.6,2392.9,4.997]
[1730756334506,4.17785,2393.6,2393.1,4.17866]
[1730756334906,4.17773,2393.7,2393.2,4.17847]
[1730756335122,4.17773,2393.7,2392.9,0.8181]
[1730756335123,4.1778,2393.6,2392.9,4.99696]
[1730756335318,4.1778,2393.6,2393.0,4.17881]
[1730756335527,4.17742,2393.9,2393.2,4.17839]
[1730756335699,5.498067,2393.8,2392.5,0.7983]
[1730756335900,5.498067,2393.8,2392.0,4.18043]
[1730756335901,4.17954,2392.7,2392.0,4.18043]
[1730756336130,4.18002,2392.4,2391.8,4.97913]
[1730756336451,4.17852,2393.2,2391.8,0.7983]
[1730756336452,4.1795,2392.7,2391.8,0.7983]
[1730756336600,0.8274,2392.9,2391.8,0.7983]
[1730756336601,0.8274,2392.9,2392.1,4.18042]
[1730756336804,5.498067,2393.0,2392.4,4.1798]
[1730756336805,4.17888,2393.0,2392.4,4.1798]
[1730756337108,4.17863,2393.2,2392.0,0.08358784]
[1730756337294,4.17852,2393.2,2392.7,4.17925]
[1730756337501,4.17833,2393.3,2392.7,8.35852]
[1730756337795,4.17854,2393.2,2392.7,4.17925]
[1730756338217,4.17854,2393.2,2392.5,4.17963]
[1730756338419,4.1791,2392.9,2392.4,4.1799]
[1730756338696,4.17929,2392.8,2392.3,4.18005]
[1730756339123,4.17815,2393.4,2392.5,4.17972]
[1730756339344,8.3572,2393.2,2392.6,4.17946]
[1730756339516,0.8274,2393.6,2392.8,4.17907]
[1730756339517,4.17827,2393.4,2392.8,4.17907]
[1730756339840,4.17912,2392.9,2392.3,4.17993]
[1730756340041,4.1792,2392.8,2392.3,4.17993]
[1730756340399,4.1787,2393.1,2391.9,4.18067]
[1730756340744,4.18037,2392.2,2391.8,0.7983]
[1730756341040,4.18026,2392.2,2391.7,4.18109]
[1730756341348,4.18,2392.4,2391.4,0.7635]
[1730756341647,0.8281,2392.8,2391.8,4.18079]
[1730756341797,5.00734,2392.8,2392.0,4.18057]
[1730756341997,5.00734,2392.8,2391.4,4.94513]
[1730756341998,5.00734,2392.8,2392.2,4.18019]
[1730756342201,9.18663,2392.8,2392.2,4.1801]
[1730756342399,5.00734,2392.8,2392.2,4.1801]
[1730756342648,5.00622,2393.2,2392.4,4.1799]
[1730756342853,5.00622,2393.2,2392.7,4.17935]
[1730756343081,4.17869,2393.1,2392.6,4.17954]
[1730756343650,4.17869,2393.1,2392.2,4.99105]
[1730756343651,0.8276,2393.2,2392.2,0.8108]
[1730756343852,4.1801,2392.3,2391.9,4.18077]
[1730756344077,4.1801,2392.3,2391.8,0.8108]
[1730756344261,0.8276,2392.4,2391.2,0.87353664]
[1730756344464,0.8276,2392.4,2391.2,5.05544664]
[1730756344465,4.18027,2392.2,2391.2,5.05544664]
[1730756344704,4.18113,2391.7,2391.2,0.8108]
[1730756344881,4.18096,2391.8,2391.1,4.18213]
[1730756345086,4.18096,2391.8,2391.2,4.1819]
[1730756345087,4.18116,2391.7,2391.2,4.1819]
[1730756345450,4.18179,2391.4,2390.9,4.18235]
[1730756345695,4.18149,2391.5,2391.0,4.18232]
[1730756345864,4.1807,2392.0,2390.8,0.8108]
[1730756345865,4.18106,2391.8,2391.1,4.18215]
[1730756346200,4.18106,2391.8,2391.3,4.18181]
[1730756346405,4.18106,2391.8,2391.1,4.18215]
[1730756346615,4.18106,2391.8,2391.2,4.18194]
[1730756346904,4.18105,2391.8,2391.2,4.18186]
[1730756347106,4.18124,2391.7,2391.2,4.18186]
[1730756347283,4.18105,2391.8,2391.2,4.18186]
[1730756347483,0.04492724,2391.6,2391.2,4.18186]
[1730756347693,4.18124,2391.7,2390.9,4.18251]
[1730756347694,4.18175,2391.4,2390.9,4.18251]
[1730756347896,8.36354,2391.4,2390.9,4.18251]
[1730756348219,0.04469226,2391.3,2391.2,4.182]
[1730756348574,4.18106,2391.8,2391.2,4.18187]
[1730756348907,4.18124,2391.7,2391.1,4.18205]
[1730756349110,4.18144,2391.6,2391.1,4.18205]
[1730756349308,4.22590021,2391.7,2391.2,4.18199]
[1730756349529,8.36252,2391.7,2391.2,4.18199]
[1730756349675,0.04466021,2391.6,2391.0,4.18229]
[1730756349875,4.22597021,2391.6,2391.1,4.18216]
[1730756350177,0.04466021,2391.6,2391.1,4.18208]
[1730756350323,4.18149,2391.5,2391.0,4.18229]
[1730756350489,4.18149,2391.5,2391.0,8.36451]
[1730756350684,0.04465487,2391.4,2391.2,4.18191]
[1730756350919,4.18019,2392.3,2391.3,0.08362799]
[1730756351222,4.95954,2392.8,2392.3,4.18]
[1730756351408,0.02,2393.6,2392.6,4.17946]
[1730756351409,4.17868,2393.1,2392.6,4.17946]
[1730756351731,4.17879,2393.1,2392.5,4.17971]
[1730756351887,4.17879,2393.1,2392.6,4.17955]
[1730756352519,0.7803,2393.2,2392.3,0.7557]
[1730756352520,4.1791,2392.9,2392.4,4.17985]
[1730756352722,5.498067,2392.9,2391.5,0.8065]
[1730756352938,4.18025,2392.2,2391.6,4.1813]
[1730756353219,4.1806,2392.0,2391.5,4.18139]
[1730756353429,4.1806,2392.0,2391.6,4.18129]
[1730756353592,4.1806,2392.0,2391.4,8.36308]
[1730756353953,0.8237,2392.4,2391.4,4.1816]
[1730756354158,4.18051,2392.1,2391.6,4.18129]
[1730756354312,4.1804,2392.2,2391.6,8.36249]
[1730756354509,4.1804,2392.2,2391.6,4.1812]
[1730756354916,5.00366,2392.4,2391.1,0.8065]
[1730756354917,4.18013,2392.3,2391.7,4.18103]
[1730756355115,0.8237,2392.4,2391.7,4.18104]
[1730756355374,5.00369,2392.4,2391.9,4.18076]
[1730756355517,4.17939,2392.7,2392.0,4.18051]
[1730756355941,4.18007,2392.3,2391.7,4.18106]
[1730756356157,5.00294,2392.8,2391.8,0.083613]
[1730756356360,0.8237,2393.2,2392.9,4.17898]
[1730756356525,5.0016,2393.6,2392.9,4.17901]
[1730756356713,0.8237,2393.6,2393.2,4.17841]
[1730756357050,0.8237,2394.0,2393.6,4.17769]
[1730756357257,1.672535,2394.3,2393.7,0.08355178]
[1730756357468,1.672535,2394.3,2393.6,0.8065]
[1730756357469,1.672535,2394.3,2394.0,4.17701]
[1730756357776,4.99976,2394.6,2394.1,4.17677]
[1730756358056,4.17641,2394.4,2393.6,0.8065]
[1730756358426,4.17679,2394.2,2393.7,4.17758]
[1730756358818,4.17653,2394.4,2393.6,4.98419]
[1730756359012,4.17666,2394.3,2393.8,4.17745]
[1730756359249,4.1774,2393.9,2393.3,4.17832]
[1730756359459,4.1766,2394.3,2393.8,4.17744]
[1730756359620,4.1766,2394.3,2393.6,4.1778]
[1730756359815,5.498067,2394.5,2393.2,0.803]
[1730756359816,4.17723,2394.0,2393.4,4.17804]
[1730756360325,4.17807,2393.5,2392.8,8.35819]
[1730756363158,4.18096,2391.8,2391.4,5.04903479]
[1730756363317,4.18109,2391.8,2391.4,0.86750479]
[1730756363516,0.04493262,2391.7,2391.4,0.86750479]
[1730756363748,6.300067,2392.5,2391.4,0.86750479]
[1730756363749,4.18054,2392.1,2391.4,0.86750479]
[1730756363952,0.04493262,2391.6,2391.5,4.18139]
[1730756364256,4.18064,2392.0,2391.5,8.36276]
[1730756364458,4.1808,2391.9,2391.5,4.18147]
[1730756364859,0.04493262,2391.8,2391.5,4.18147]
[1730756365366,0.04493262,2391.8,2391.3,4.1817]
[1730756365367,0.04493262,2391.8,2391.3,4.18172]
[1730756365533,0.04493262,2391.8,2391.4,4.18153]
[1730756366834,0.04493262,2391.8,2391.4,4.18159]
[1730756367036,0.04493262,2391.8,2391.5,4.18146]
[1730756367232,4.18039,2392.2,2391.6,4.18127]
[1730756367578,0.04493262,2392.1,2391.7,4.18112]
[1730756368278,5.89930062,2392.1,2391.6,4.18127]
[1730756368479,4.18115,2391.7,2391.2,4.18189]
[1730756368681,4.18088,2391.9,2391.2,4.18189]
[1730756368682,0.04463892,2391.6,2391.2,4.18186]
[1730756368881,4.18105,2391.8,2391.2,4.18186]
[1730756369064,0.04463892,2391.7,2391.4,4.18161]
[1730756369239,4.18096,2391.8,2391.3,4.18165]
[1730756369438,0.04463892,2391.7,2391.4,4.18164]
[1730756369691,4.18078,2391.9,2391.4,4.18164]
[1730756369839,0.04463892,2391.6,2391.4,4.18164]
[1730756370040,4.18078,2391.9,2391.4,4.18164]
[1730756370339,0.04463892,2391.8,2391.5,4.18135]
[1730756370568,5.854398,2392.1,2391.3,4.18172]
[1730756370844,5.854378,2392.1,2391.6,4.18119]
[1730756371185,4.18079,2391.9,2391.4,4.18151]
[1730756371476,7.171915,2392.1,2390.8,0.7788]
[1730756371783,4.18078,2391.9,2391.4,4.18154]
[1730756372134,0.04432924,2391.8,2391.4,4.18154]
[1730756373254,4.22536924,2391.8,2391.3,4.18173]
[1730756373458,4.22536924,2391.8,2390.8,0.7788]
[1730756373459,0.04432924,2391.8,2390.8,0.7788]
[1730756373653,5.854318,2392.1,2391.6,4.18127]
[1730756373654,10.034828,2392.1,2391.6,4.18127]
[1730756373864,0.0442331,2392.0,2391.6,4.18127]
[1730756374272,4.2249231,2392.0,2391.5,4.18145]
[1730756374577,4.1813,2391.6,2390.8,0.7788]
[1730756374789,4.18201,2391.2,2390.4,5.02488787]
[1730756374983,0.04435594,2391.5,2391.1,4.18209]
[1730756375287,0.04435594,2391.4,2391.0,4.18233]
[1730756375579,4.9733,2391.6,2391.0,4.1822]
[1730756375780,0.04416899,2391.3,2391.0,4.1822]
[1730756376097,0.04416899,2391.2,2391.0,4.1822]
[1730756376380,4.18177,2391.4,2390.9,4.18241]
[1730756376591,0.04416899,2391.1,2390.9,4.18241]
[1730756376759,0.792,2391.6,2390.9,4.18241]
[1730756376953,0.792,2391.6,2391.0,4.18225]
[1730756376954,4.18156,2391.5,2391.0,4.18225]
[1730756377364,4.18173,2391.4,2390.9,4.18251]
[1730756377567,4.18234,2391.1,2390.5,4.18309]
[1730756377846,0.04403008,2391.0,2390.6,4.18304]
[1730756378047,0.04403008,2391.0,2390.8,4.18261]
[1730756378385,1.63857311,2391.6,2391.0,4.18218]
[1730756378386,0.792,2391.6,2391.0,4.18218]
[1730756378585,8.36308,2391.5,2391.0,4.18218]
[1730756378945,8.3631,2391.5,2391.0,4.18218]
[1730756379152,8.3631,2391.5,2390.4,0.7788]
[1730756379153,4.18166,2391.4,2390.9,4.18239]
[1730756379378,4.18201,2391.2,2390.7,4.18276]
[1730756379579,4.18201,2391.2,2390.6,4.18305]
[1730756379793,0.792,2391.6,2390.5,4.18321]
[1730756379794,4.18261,2390.9,2390.5,4.18321]
[1730756379945,4.1822,2391.1,2390.6,4.18293]
[1730756380487,4.18195,2391.3,2390.5,4.18307]
[1730756380644,1.63857311,2391.6,2390.8,4.18267]
[1730756380839,1.63857311,2391.6,2390.9,4.18246]
[1730756380840,4.18176,2391.4,2390.9,4.18246]
[1730756381680,4.18185,2391.3,2390.9,4.18246]
[1730756381984,4.18211,2391.2,2390.7,4.18286]
[1730756382193,4.18211,2391.2,2390.6,4.18299]
[1730756382484,4.182,2391.2,2390.5,4.18313]
[1730756382701,4.182,2391.2,2390.7,4.18279]
[1730756382851,8.36415,2391.2,2390.7,4.18279]
[1730756383187,4.1822,2391.1,2390.7,4.18279]
[1730756383350,0.84657311,2391.5,2390.8,4.18261]
[1730756383351,4.1819,2391.3,2390.8,4.18261]
[1730756383687,4.18176,2391.4,2390.8,4.18261]
[1730756383688,1.63857311,2391.6,2390.8,0.43725371]
[1730756384017,1.69314623,2391.8,2391.5,4.18138]
[1730756384018,0.84657311,2391.8,2391.5,4.18138]
[1730756384195,0.84657311,2391.8,2391.4,4.18163]
[1730756384196,4.18095,2391.8,2391.4,4.18163]
[1730756384506,4.18124,2391.7,2391.2,4.18192]
[1730756384665,4.18124,2391.7,2391.3,0.0172661]
[1730756385107,4.18131,2391.6,2391.3,0.0172661]
[1730756385288,4.18165,2391.4,2391.3,0.0172661]
[1730756386307,0.84657311,2391.6,2391.3,0.0172661]
[1730756386466,5.02783311,2391.7,2391.3,0.0172661]
[1730756386671,0.84657311,2391.7,2391.3,0.0172661]
[1730756386979,4.18164,2391.5,2391.3,0.0172661]
[1730756387162,8.36321,2391.5,2391.3,0.0172661]
[1730756387364,4.18165,2391.4,2391.3,0.0172661]
[1730756388310,4.18165,2391.4,2391.3,0.00065369]
[1730756391415,4.18157,2391.5,2391.3,0.00065369]
[1730756392005,4.18165,2391.4,2391.3,0.00065369]
[1730756392503,4.89953205,2391.4,2391.3,0.00065369]
[1730756392699,4.22366216,2391.4,2391.3,0.00065369]
[1730756393719,4.89912655,2391.4,2391.3,0.00065369]
[1730756393928,4.22366216,2391.4,2391.3,0.00065369]
[1730756394091,0.04201216,2391.4,2391.3,4.18247369]
[1730756394421,0.04201216,2391.4,2391.3,0.00065369]
[1730756394602,4.18148,2391.5,2391.3,0.00065369]
[1730756394811,0.04211916,2391.4,2391.3,0.00065369]
[1730756395119,4.22376916,2391.4,2391.3,0.00065369]
[1730756395323,12.63009571,2391.4,2391.3,0.00065369]
[1730756395522,4.1829,2390.7,2390.2,4.18366]
[1730756395732,0.84931266,2391.1,2390.2,4.18363]
[1730756396018,1.84828508,2391.1,2390.3,0.08366655]
[1730756396227,0.04211916,2391.0,2390.9,4.18252]
[1730756396391,0.04211916,2391.0,2390.9,5.421172]
[1730756396598,1.27396899,2391.6,2391.1,4.18202]
[1730756396599,4.18133,2391.6,2391.1,4.18202]
[1730756397032,4.18133,2391.6,2391.2,4.18199]
[1730756397326,4.18133,2391.6,2391.1,4.18215]
[1730756397764,4.18129,2391.7,2391.1,4.18215]
[1730756398028,4.18129,2391.7,2390.9,5.00279]
[1730756398029,8.3631,2391.5,2391.0,4.18233]
[1730756398189,4.18168,2391.4,2391.0,4.18233]
[1730756398528,4.18203,2391.2,2390.8,4.18267]
[1730756398832,0.84931266,2391.5,2390.7,4.18287]
[1730756398984,0.84931266,2391.7,2391.3,4.18168]
[1730756399183,0.84931266,2391.7,2391.2,4.18193]
[1730756399184,1.8434889,2391.7,2391.2,4.18193]
[1730756399393,5.85236266,2391.8,2391.3,4.18166]
[1730756399612,10.03346266,2391.8,2391.3,4.18166]
[1730756399781,5.85236266,2391.8,2391.3,4.18166]
[1730756399980,4.18105,2391.8,2391.4,4.18163]
[1730756400186,3.37247333,2392.1,2391.5,0.0836322]
[1730756400187,2.52316066,2392.1,2391.5,0.0836322]
[1730756400424,1.27396899,2392.2,2391.6,4.18129]
[1730756400425,4.1806,2392.0,2391.6,4.18129]
[1730756400628,4.18123,2391.7,2391.2,4.18189]
[1730756400928,4.18123,2391.7,2391.2,4.18187]
[1730756401097,4.18123,2391.7,2390.8,4.99921]
[1730756401098,5.69208904,2391.9,2391.3,4.18174]
[1730756401440,2.1236621,2392.2,2391.9,4.18077]
[1730756401441,2.12328165,2392.2,2391.9,4.18077]
[1730756401722,6.72789452,2392.7,2392.4,4.1799]
[1730756401723,0.84931266,2392.6,2392.4,4.1799]
[1730756401930,0.84931266,2392.7,2392.4,4.1799]
[1730756402235,5.02852266,2392.8,2392.4,4.17981]
[1730756402416,5.02852266,2392.8,2391.7,0.8117]
[1730756402417,4.17972,2392.6,2391.9,4.18062]
[1730756402726,4.17972,2392.6,2392.1,4.18033]
[1730756402727,4.17956,2392.6,2392.1,4.18033]
[1730756403224,4.17956,2392.6,2392.2,0.08360037]
[1730756403225,0.84931266,2392.6,2392.2,0.08360037]
[1730756403440,0.84931266,2392.7,2391.7,0.8117]
[1730756403748,4.18148,2391.5,2390.9,5.06045441]
[1730756404044,4.18165,2391.4,2390.9,4.9977]
[1730756404340,5.03096266,2391.4,2390.9,4.9977]
[1730756404628,0.84931266,2391.4,2391.1,4.18211]
[1730756404788,5.03096266,2391.4,2390.9,0.8153]
[1730756404991,0.84931266,2391.4,2391.1,4.18206]
[1730756405236,0.84931266,2391.4,2390.6,1.37331485]
[1730756405439,0.84931266,2391.1,2390.0,0.8153]
[1730756405721,5.03186266,2390.9,2390.4,8.3667]
[1730756405930,5.03186266,2390.9,2390.4,4.18331]
[1730756406136,4.18271,2390.8,2390.2,4.1836]
[1730756406289,0.84931266,2390.8,2390.4,4.18337]
[1730756406489,0.84931266,2390.8,2390.4,4.18331]
[1730756406729,6.02873373,2390.8,2390.2,4.18361]
[1730756407028,4.18316,2390.6,2390.0,4.99922]
[1730756407231,4.18316,2390.6,2390.1,4.18389]
[1730756407544,0.04211916,2390.5,2390.4,4.18331]
[1730756407829,5.45662899,2390.9,2390.4,4.18331]
[1730756407830,0.84931266,2390.9,2390.4,4.1834]
[1730756408044,0.04211916,2390.5,2390.4,4.1834]
[1730756408192,0.84931266,2391.2,2390.4,0.92035024]
[1730756408504,0.84931266,2390.9,2390.0,0.8153]
[1730756408708,5.03218266,2390.7,2389.9,0.0714172]
[1730756408894,4.18365,2390.3,2389.9,0.0714172]
[1730756409237,4.18343,2390.4,2389.9,4.2556772]
[1730756409431,0.04161083,2390.2,2390.0,4.18403]
[1730756409629,8.36657,2390.5,2389.9,8.4398072]
[1730756409630,4.18355,2390.4,2389.9,8.4398072]
[1730756409794,0.04161083,2390.1,2390.0,4.1841]
[1730756410003,4.18322,2390.5,2390.0,4.1841]
[1730756410541,0.04161083,2390.4,2390.0,4.1841]
[1730756410730,0.04161083,2390.4,2390.0,4.18395]
[1730756410927,1.69862533,2390.8,2390.3,4.18357]
[1730756410928,0.84931266,2390.8,2390.3,4.18357]
[1730756411132,0.04161083,2390.7,2390.3,4.18349]
[1730756411388,0.04161083,2390.7,2389.9,0.0714172]
[1730756411389,0.7685,2390.6,2389.9,4.2555972]
[1730756411528,0.81004125,2390.6,2390.2,4.18374]
[1730756411877,4.99309125,2390.6,2390.1,4.18383]
[1730756412032,4.99309125,2390.6,2390.0,4.1841]
[1730756412232,0.04154125,2390.6,2390.4,4.18339]
[1730756412770,4.18254,2390.9,2390.4,4.18339]
[1730756412958,0.04158407,2390.5,2390.4,4.18339]
[1730756413142,5.03185266,2390.9,2390.4,4.18339]
[1730756413479,2.46712533,2391.1,2390.6,4.18287]
[1730756413480,0.04158407,2390.8,2390.6,4.18287]
[1730756413679,0.04158407,2390.8,2390.4,0.8244]
[1730756413680,0.04158407,2390.8,2390.4,5.00768]
[1730756413978,0.04158407,2390.8,2390.0,4.60957172]
[1730756413979,0.04158407,2390.7,2390.5,4.18314]
[1730756414132,0.04158407,2390.7,2390.3,4.18351]
[1730756414133,0.04158407,2390.7,2390.3,4.18347]
[1730756414335,0.84931266,2390.8,2390.3,4.18347]
[1730756414546,0.04158407,2390.7,2390.1,4.18381]
[1730756414780,0.04158407,2390.7,2390.0,0.8244]
[1730756414781,0.04158407,2390.7,2390.2,0.08366559]
[1730756414979,0.04158407,2390.7,2390.4,4.18337]
[1730756415269,4.18272,2390.8,2390.3,4.18357]
[1730756415475,4.18272,2390.8,2389.9,4.2555772]
[1730756415476,4.1833,2390.5,2389.9,4.2555772]
[1730756415640,0.84931266,2390.6,2390.2,4.18373]
[1730756415838,0.04158407,2390.4,2390.2,8.36739]
[1730756416078,4.18293,2390.7,2390.2,8.36739]
[1730756416245,0.04158407,2390.3,2390.0,4.18395]
[1730756416453,4.18314,2390.6,2390.1,4.18391]
[1730756416758,1.63311266,2390.8,2389.9,0.0714172]
[1730756416960,0.04158407,2390.5,2390.4,4.18332]
[1730756417139,4.96653,2390.8,2390.4,4.18332]
[1730756417333,0.04158407,2390.7,2390.4,4.18332]
[1730756417536,4.18291,2390.7,2390.3,4.18343]
[1730756417735,0.04158407,2390.6,2390.3,4.18343]
[1730756417951,4.9665,2390.8,2390.3,8.36691]
[1730756418161,4.22447407,2390.7,2390.3,4.18343]
[1730756418600,0.04158407,2390.7,2390.3,4.18357]
[1730756418751,0.04158407,2390.7,2390.6,4.18305]
[1730756418957,4.18235,2391.0,2390.6,4.18305]
[1730756419176,0.04158407,2390.7,2390.6,4.1829]
[1730756419384,5.03150266,2391.1,2389.8,4.18442]
[1730756419686,0.04153054,2390.7,2390.6,4.18302]
[1730756419905,1.27396899,2391.1,2390.6,4.18302]
[1730756419906,5.03148266,2391.1,2390.6,4.18302]
[1730756420053,4.22449054,2390.7,2390.1,4.18392]
[1730756420398,0.04166434,2390.6,2390.4,4.18336]
[1730756420564,0.84931266,2390.8,2389.9,0.8885172]
[1730756420752,0.84931266,2390.8,2390.0,0.08366817]
[1730756420753,0.04166434,2390.5,2390.0,0.08366817]
[1730756420996,4.18351,2390.4,2389.9,0.0714172]
[1730756421150,4.1841,2390.0,2389.9,0.0714172]
[1730756421351,0.84931266,2390.1,2389.9,0.0714172]
[1730756421616,1.69862533,2390.3,2390.0,4.1841]
[1730756421617,0.84931266,2390.3,2390.0,4.1841]
[1730756421972,0.84931266,2390.4,2389.9,5.0153672]
[1730756422173,0.84931266,2390.7,2390.2,4.18366]
[1730756422372,4.18297,2390.7,2390.2,4.18366]
[1730756422709,11.82399324,2391.1,2391.0,4.18235]
[1730756422710,0.84931266,2391.1,2391.0,4.18235]
[1730756423017,0.84931266,2391.3,2391.0,4.18235]
[1730756423533,0.84931266,2391.3,2390.5,4.1831]
[1730756423534,3.11872642,2391.3,2390.5,4.17742]
[1730756423745,5.03173266,2391.0,2390.5,4.17742]
[1730756423884,1.84490212,2390.9,2390.5,4.17742]
[1730756424320,4.18287,2390.7,2390.2,4.18367]
[1730756424519,4.18287,2390.7,2389.9,0.0714172]
[1730756424520,0.84931266,2390.7,2389.9,0.0714172]
[1730756424694,4.18314,2390.6,2390.2,4.18368]
[1730756425017,4.18314,2390.6,2390.2,8.36736]
[1730756425208,4.18314,2390.6,2390.2,4.18368]
[1730756425527,1.67521266,2390.9,2390.2,4.18363]
[1730756425841,0.84931266,2390.6,2389.9,0.0714172]
[1730756425988,1.84617304,2390.8,2390.3,0.7597]
[1730756426191,0.8507771,2390.9,2390.7,4.18287]
[1730756426496,1.27396899,2391.0,2390.3,0.7597]
[1730756426497,0.8507771,2391.0,2390.5,4.18305]
[1730756426701,0.8507771,2390.9,2390.3,0.7597]
[1730756426994,0.8507771,2390.9,2390.6,4.18291]
[1730756427201,0.8507771,2390.9,2390.8,4.1827]
[1730756427432,1.69862533,2391.2,2391.0,4.18235]
[1730756427433,0.8507771,2391.2,2391.0,4.18235]
[1730756427576,0.8507771,2391.2,2390.3,0.7597]
[1730756427577,0.8507771,2391.3,2391.1,4.18217]
[1730756428075,3.50493934,2391.4,2391.1,4.18217]
[1730756428278,1.8459097,2391.3,2390.9,4.18235]
[1730756428490,0.8507771,2391.3,2390.9,4.18235]
[1730756428819,3.50493934,2391.4,2391.1,4.18204]
[1730756429209,3.50493934,2391.4,2391.2,4.18189]
[1730756429576,3.50493934,2391.4,2391.1,4.18204]
[1730756429782,3.50493934,2391.4,2391.1,8.36412]
[1730756429982,3.50493934,2391.4,2391.3,4.18182]